[Event "13th Dolomiti-Forni di Sopra-A 2022"]
[Site "Forni di Sopra"]
[Date "2022.06.13"]
[Round "2.1"]
[White "Bernadskiy, Vitaliy"]
[Black "Bellia, Fabrizio"]
[Result "1-0"]
[ECO "D35"]
[WhiteElo "2636"]
[BlackElo "2418"]
[Annotator "TA"]
[PlyCount "71"]
[EventDate "2022.06.13"]
[EventType "swiss"]
[EventCountry "ITA"]
[SourceTitle "playchess.com"]
[Source "ChessBase"]
[SourceQuality "1"]
[TimeControl "40/5400+30:1800+30"]

{[%evp 15,71,1,14,8,18,19,18,0,15,0,45,35,50,53,57,54,48,48,64,54,57,47,38,6,8,14,78,0,4,0,4,8,8,8,8,9,10,34,35,49,164,156,823,806,772,568,567,569,568,556,1091,1059,29984,29985,29985,29986,29996,29997]} 1. c4 {[%emt 0:00:03]} e6 {[%emt 0:00:23]} 2. Nc3 {[%emt 0:00:13]} d5 {[%emt 0:00:04]} 3. d4 {[%emt 0:00:03]} Nf6 {[%emt 0:00:05]} 4. cxd5 {[%emt 0:00:50]} exd5 {[%emt 0:00:06]} 5. Bg5 {[%emt 0:00:04]} c6 {[%emt 0:00:07]} 6. e3 {[%emt 0:00:13]} h6 {[%emt 0:00:06]} 7. Bh4 {[%emt 0:00:10]} Be7 {[%emt 0:00:07]} 8. Bd3 {[%emt 0:00:06]} O-O {[%emt 0:00:07]} 9. Nge2 $1 {[%emt 0:01:28][%mdl 4] now scores much better than the old 9.Qc2. D35: Queen's Gambit Declined: Exchange Variation.} Re8 {[%emt 0:00:17]} 10. O-O {[%emt 0:01:08]} Nbd7 {[%emt 0:00:21]} 11. f3 {[%emt 0:00:46] The position is equal.} a5 {[%emt 0:01:02] [#]} 12. a4 $146 {[%emt 0:04:49]} ({Predecessor:} 12. Bf2 Nf8 13. Kh1 b5 14. Bg1 a4 15. a3 Ne6 16. e4 dxe4 17. fxe4 Ng5 18. Qc2 {1-0 (61) Wagh,S (2245)-Vusatiuk,V (2323) Chess.com INT 2020}) 12... b6 {[%emt 0:12:14]} 13. Bf2 {[%emt 0:03:34]} Ba6 {[%emt 0:04:47]} 14. Bxa6 {[%emt 0:02:09]} Rxa6 {[%emt 0:00:05]} 15. Ng3 {[%emt 0:04:18]} c5 {[%emt 0:06:53]} 16. Qb3 {[%emt 0:01:31]} cxd4 {[%emt 0:05:20]} 17. exd4 {[%emt 0:01:50]} Nf8 {[%emt 0:00:10]} 18. Nf5 {[%emt 0:01:12]} Bb4 {[%emt 0:02:40]} 19. Rfe1 {[%emt 0:02:18]} Rxe1+ {[%emt 0:02:40]} 20. Rxe1 {[%emt 0:00:23]} Qd7 {[%emt 0:00:24] [#]} (20... Ng6 $11 {remains equal.}) 21. Qc2 {[%emt 0:06:50] White is much more active.} (21. Ne3 $1 $16) 21... Ra8 {[%emt 0:03:18]} 22. g4 {[%emt 0:05:15]} Re8 {[%emt 0:07:34]} 23. Rxe8 {[%emt 0:00:14]} Nxe8 {[%emt 0:10:10]} 24. Na2 {[%emt 0:01:49]} Bd6 {[%emt 0:05:24]} 25. Qb3 {[%emt 0:00:40]} h5 {[%emt 0:22:02]} 26. h3 {[%emt 0:00:17][%cal Bh2h3,Bh3g4,Bg4g5,Bg5h6,Bh6g7][%mdl 32]} hxg4 {[%emt 0:00:18]} 27. hxg4 {[%emt 0:00:04]} Bf4 {[%emt 0:02:07] [#]} ({Better is} 27... Qe6 $1 $14) 28. Qxd5 $3 $18 {[%emt 0:02:14][%mdl 512]} Qxa4 $2 {[%emt 0:05:09] This move loses the game for Black.} (28... Bh2+ $2 29. Kxh2 Nc7 30. Qxd7 Nxd7 31. Nc3 $18) (28... Nc7 $16 29. Qxd7 Nxd7) (28... Qc7 29. Qc6) 29. Ne7+ {[%emt 0:00:34]} Kh7 {[%emt 0:00:19]} 30. Qxf7 {[%emt 0:04:47]} Nf6 {[%emt 0:00:13]} 31. Nf5 {[%emt 0:00:41][%csl Gf5][%cal Rf7g7]} (31. Qxf8 Qxa2 32. Qc8 (32. Nf5 Bh6 $16) 32... Qb1+ 33. Kg2 a4 $18) 31... Bh6 {[%emt 0:00:31]} 32. g5 {[%emt 0:02:23]} ({Not} 32. Qxf8 Qxa2 33. Kg2 (33. Nxh6 Kxh6 34. Qh8+ Kg6 $16) 33... Qe6 $16) 32... Qd1+ {[%emt 0:01:13]} 33. Kg2 {[%emt 0:00:04]} Ng6 {[%emt 0:00:46]} 34. gxh6 {[%emt 0:00:24][%csl Gf5,Gh6][%cal Rf7g7] White mates.} Nf4+ {[%emt 0:00:30]} 35. Kh2 {[%emt 0:00:16][%csl Gf5,Gh6][%cal Rf7g7]} N6h5 {[%emt 0:02:02]} 36. hxg7 {[%emt 0:00:39] Weighted Error Value: White=0.15 (very precise) /Black=0.41} 1-0

[Event "13th Dolomiti-Forni di Sopra-A 2022"]
[Site "Forni di Sopra"]
[Date "2022.06.13"]
[Round "2.3"]
[White "Basso, Pier Luigi"]
[Black "Harshavardhan G B"]
[Result "1/2-1/2"]
[ECO "E12"]
[WhiteElo "2570"]
[BlackElo "2367"]
[Annotator "TA"]
[PlyCount "150"]
[EventDate "2022.06.13"]
[EventType "swiss"]
[EventCountry "ITA"]
[SourceTitle "playchess.com"]
[Source "ChessBase"]
[SourceQuality "1"]
[TimeControl "40/5400+30:1800+30"]

{[%evp 15,150,0,-2,-8,-10,-10,0,-6,9,2,0,0,0,-11,-6,-31,-14,-16,-13,-21,-4,-10,-18,-28,0,0,8,7,25,-4,0,0,0,0,8,0,3,0,4,8,6,0,0,0,4,4,8,0,0,0,0,0,0,0,0,0,0,0,0,0,0,0,0,0,0,0,0,0,0,0,0,0,0,0,0,0,0,0,0,0,0,0,0,0,0,0,0,0,0,0,0,0,0,0,0,0,0,0,0,0,8,8,8,8,8,8,8,8,8,8,8,8,8,8,8,8,8,8,8,8,8,8,8,8,8,8,8,8,8,8,8,8,8,8,8,8,8]} 1. d4 {[%emt 0:00:53]} Nf6 {[%emt 0:00:47]} 2. c4 {[%emt 0:00:06]} e6 {[%emt 0:00:56]} 3. Nf3 {[%emt 0:00:04]} b6 {[%emt 0:00:35]} 4. a3 {[%emt 0:00:07]} Bb7 {[%emt 0:00:40]} 5. Nc3 {[%emt 0:00:05]} d5 {[%emt 0:00:07]} 6. Bg5 {[%emt 0:00:37]} Be7 {[%emt 0:01:22]} 7. Bxf6 {[%emt 0:03:07]} Bxf6 {[%emt 0:00:12]} 8. cxd5 {[%emt 0:00:03]} exd5 {[%emt 0:00:35]} 9. Qa4+ {[%emt 0:00:05] E12: Queen's Indian: Unusual White 4th moves, 4 a3, 4 Nc3 Bb7 5 a3 and 4 Nc3 Bb7 .} Qd7 $1 {[%emt 0:02:39][%mdl 4] is currently scoring better than 9...c6.} 10. g3 {[%emt 0:00:15]} O-O {[%emt 0:04:19]} 11. Bg2 {[%emt 0:08:55] [#]} c5 $146 {[%emt 0:07:12]} ({Predecessor:} 11... Qe7 12. O-O Nd7 13. Rad1 g6 14. Rfe1 Rfe8 15. h4 Bg7 16. b4 a6 17. Qb3 Qd6 {1-0 (44) Jaracz,P (2456)-Babiy,O (2300) Chess.com INT 2021}) 12. Qxd7 {[%emt 0:04:34]} Nxd7 {[%emt 0:00:06]} 13. Rd1 {[%emt 0:00:34]} Rfd8 {[%emt 0:01:19]} 14. O-O {[%emt 0:00:37][%cal Be1g1,Bg1h2,Bh2g3,Bg3g2][%mdl 32]} a6 {[%emt 0:01:20]} 15. Rfe1 {[%emt 0:04:59]} Rac8 {[%emt 0:01:06]} 16. e3 {[%emt 0:01:15]} c4 {[%emt 0:07:14]} 17. g4 {[%emt 0:03:59]} h6 {[%emt 0:02:09]} 18. h4 {[%emt 0:00:04]} Nf8 {[%emt 0:00:51]} 19. Kh2 {[%emt 0:03:48]} Ne6 {[%emt 0:06:37]} 20. Kg3 {[%emt 0:00:52]} b5 {[%emt 0:05:01]} 21. Ne5 {[%emt 0:02:57]} Nc5 {[%emt 0:03:41]} 22. Nxc4 {[%emt 0:15:09]} (22. f4 {is interesting.} Na4 23. Nxa4 bxa4 24. Rc1) 22... dxc4 {[%emt 0:01:37] The position is equal.} (22... bxc4 {is more complex.} 23. dxc5 Rxc5 24. Rd2 Ra5) 23. dxc5 {[%emt 0:00:08]} Bxg2 {[%emt 0:00:34]} 24. Kxg2 {[%emt 0:00:16]} Bxh4 {[%emt 0:00:35]} 25. Ne4 {[%emt 0:04:17]} Be7 {[%emt 0:03:09]} 26. Rd4 {[%emt 0:00:21]} Rc6 {[%emt 0:22:43]} 27. Rxd8+ {[%emt 0:05:02]} Bxd8 $11 {[%emt 0:00:07][%mdl 4096] Endgame KRB-KRN} 28. Rd1 {[%emt 0:01:37]} Be7 {[%emt 0:04:46]} 29. Rd5 {[%emt 0:00:08]} Kf8 {[%emt 0:00:36]} 30. Kf3 {[%emt 0:02:07]} Ke8 {[%emt 0:01:24]} 31. a4 {[%emt 0:00:59]} bxa4 {[%emt 0:02:36]} 32. Rd4 {[%emt 0:02:35]} c3 {[%emt 0:00:33]} 33. Nxc3 {[%emt 0:03:23]} a3 {[%emt 0:00:51]} 34. bxa3 {[%emt 0:01:09]} Rxc5 {[%emt 0:00:13]} 35. Nd5 {[%emt 0:00:14]} Bh4 {[%emt 0:03:15]} 36. Nb4 {[%emt 0:01:17]} a5 {[%emt 0:00:40]} 37. Nd3 {[%emt 0:00:14]} Rc3 {[%emt 0:01:26]} 38. a4 {[%emt 0:01:00]} Bf6 {[%emt 0:02:03]} 39. Re4+ {[%emt 0:01:23]} Kf8 {[%emt 0:05:21]} 40. Ne5 {[%emt 0:00:41] Strongly threatening Nd7+.} g6 {[%emt 0:00:21]} 41. Nc4 {[%emt 0:32:15]} Bd8 {[%emt 0:30:46]} 42. Rd4 {[%emt 0:02:43]} Bf6 {[%emt 0:00:14]} 43. Rf4 {[%emt 0:00:47]} Bg5 {[%emt 0:00:30]} 44. Rd4 {[%emt 0:00:16]} Bf6 {[%emt 0:00:05]} 45. Re4 {[%emt 0:00:06]} Bd8 {[%emt 0:00:05]} 46. Nd6 {[%emt 0:00:48]} Be7 {[%emt 0:00:27]} 47. Nb7 {[%emt 0:05:28]} Bb4 {[%emt 0:00:29]} 48. Re5 $1 {[%emt 0:00:08]} Ra3 {[%emt 0:00:15]} 49. Nxa5 {[%emt 0:00:28]} Rxa4 {[%emt 0:00:35]} 50. Nc6 {[%emt 0:00:11] [#] Threatens to win with Re4.} Bc3 {[%emt 0:00:44]} 51. Rc5 {[%emt 0:00:33]} Bf6 {[%emt 0:00:40]} 52. Rc2 {[%emt 0:00:07]} Kg7 {[%emt 0:00:46]} 53. Kg3 {[%emt 0:01:21]} g5 {[%emt 0:01:18]} 54. Rd2 {[%emt 0:02:31]} Ra6 {[%emt 0:01:25]} 55. Rc2 {[%emt 0:02:15]} Ra4 {[%emt 0:00:08]} 56. Kf3 {[%emt 0:00:15]} Kg6 {[%emt 0:00:11]} 57. Nb8 {[%emt 0:00:48]} Ra7 {[%emt 0:01:09]} 58. Rc6 {[%emt 0:00:28]} Re7 {[%emt 0:00:59]} 59. Na6 {[%emt 0:00:07]} Re6 {[%emt 0:02:55]} 60. Rxe6 {[%emt 0:01:00]} fxe6 {[%emt 0:00:05] KB-KN} 61. Nc5 {[%emt 0:00:10]} Kf7 {[%emt 0:00:06]} 62. Ke4 {[%emt 0:00:43]} Be7 {[%emt 0:00:12]} 63. Nd3 {[%emt 0:00:45]} Bd6 {[%emt 0:00:06]} 64. Ne5+ $1 {[%emt 0:00:35]} Kf6 {[%emt 0:00:09]} 65. Nc4 {[%emt 0:00:08]} Bc7 {[%emt 0:00:13]} 66. Kd4 {[%emt 0:00:16]} Kg6 {[%emt 0:00:30]} 67. Ne5+ {[%emt 0:01:39]} Kf6 {[%emt 0:00:06]} 68. Nd3 {[%emt 0:00:04]} Kg6 {[%emt 0:01:15]} 69. Kc5 {[%emt 0:04:02]} h5 {[%emt 0:01:16] [#] And now ...h4 would win.} 70. gxh5+ {[%emt 0:00:07]} Kxh5 {[%emt 0:00:06]} 71. Kc6 {[%emt 0:00:04]} Bh2 {[%emt 0:00:21]} 72. Kd7 {[%emt 0:00:07]} Kg4 {[%emt 0:02:54]} 73. Kxe6 {[%emt 0:00:49]} Kf3 {[%emt 0:00:05]} 74. Kf5 {[%emt 0:00:54]} Ke2 {[%emt 0:00:32]} 75. Ke4 {[%emt 0:00:26]} g4 {[%emt 0:00:09] An even fight not without its subleties.  Weighted Error Value: White=0.02 (flawless) /Black=0.03 (flawless)} 1/2-1/2

[Event "13th Dolomiti-Forni di Sopra-A 2022"]
[Site "Forni di Sopra"]
[Date "2022.06.13"]
[Round "2.5"]
[White "Korneev, Oleg"]
[Black "Ceschia, Ivano"]
[Result "1-0"]
[ECO "B47"]
[WhiteElo "2521"]
[BlackElo "2252"]
[Annotator "TA"]
[PlyCount "81"]
[EventDate "2022.06.13"]
[EventType "swiss"]
[EventCountry "ITA"]
[SourceTitle "playchess.com"]
[Source "ChessBase"]
[SourceQuality "1"]
[TimeControl "40/5400+30:1800+30"]

{[%evp 18,81,47,11,29,24,9,0,0,0,0,-5,0,0,6,0,0,0,0,0,0,0,0,0,0,0,0,0,0,0,0,0,0,0,0,0,0,0,0,0,0,0,0,0,0,0,0,0,0,0,0,0,0,0,0,0,12836,12836,12837,12837,12841,12841,12841,12842,12842,12843]} 1. e4 {[%emt 0:09:38]} c5 {[%emt 0:00:22]} 2. Nf3 {[%emt 0:00:10]} Nc6 {[%emt 0:00:32]} 3. Nc3 {[%emt 0:00:22]} e6 {[%emt 0:00:18]} 4. d4 {[%emt 0:00:13]} cxd4 {[%emt 0:00:05]} 5. Nxd4 {[%emt 0:00:04]} Qc7 {[%emt 0:00:24]} 6. Be2 {[%emt 0:00:39][%cal Bf1e2,Be2f3,Bf3g2][%mdl 32]} Nf6 {[%emt 0:00:38]} 7. O-O {[%emt 0:00:22]} Nxd4 {[%emt 0:05:54]} 8. Qxd4 {[%emt 0:00:26]} Bc5 {[%emt 0:00:09]} 9. Qd3 {[%emt 0:10:03]} a6 {[%emt 0:02:37]} 10. a3 {[%emt 0:04:44]} b5 {[%emt 0:05:39] B47: Sicilian: Taimanov: 5 Nc3 Qc7 6 f4, 6 g3 and 6 Be2.} 11. Bf3 {[%emt 0:18:01][%cal Oe4e5] And now e5! would win.} Rb8 {[%emt 0:00:20]} 12. Bg5 {[%emt 0:00:38] [#]} Bd6 $146 {[%emt 0:03:03] The position is equal.} ({Predecessor:} 12... d6 13. b4 Bb6 14. Rad1 Nd7 15. Qxd6 Qxd6 16. Rxd6 Bc7 17. Rd2 Ne5 18. Be2 f6 {0-1 (48) Gracia Alvarez,G (2241)-Dobrowolski,P (2413) Chess.com INT 2021}) 13. g3 {[%emt 0:02:38]} Be5 {[%emt 0:01:52]} 14. Bd2 {[%emt 0:00:46]} Bb7 {[%emt 0:07:45]} 15. Bg2 {[%emt 0:00:15]} d5 {[%emt 0:07:13]} 16. exd5 {[%emt 0:01:08]} Rd8 {[%emt 0:00:14][%cal Rf6d5]} 17. Qe2 {[%emt 0:20:52]} Nxd5 {[%emt 0:02:35]} 18. Nxd5 {[%emt 0:00:04]} Bxd5 {[%emt 0:00:08]} 19. Ba5 {[%emt 0:00:28]} Qxa5 {[%emt 0:06:00]} 20. Qxe5 {[%emt 0:00:02]} O-O {[%emt 0:00:38]} 21. Rfd1 {[%emt 0:00:15][%cal Rg2d5]} Bxg2 {[%emt 0:07:11]} 22. Kxg2 {[%emt 0:00:03]} Qb6 {[%emt 0:01:05]} 23. Qe4 {[%emt 0:01:58] Against Qc6. Active counter play!} Rd6 {[%emt 0:01:18]} 24. c4 {[%emt 0:10:43][%cal Bc2c4,Bc4c5,Bc5d6][%mdl 32]} f5 {[%emt 0:02:17]} 25. Rxd6 {[%emt 0:03:06]} Qxd6 {[%emt 0:00:33]} 26. c5 {[%emt 0:00:22]} fxe4 {[%emt 0:02:44]} 27. cxd6 $11 {[%emt 0:00:02][%mdl 4096] Endgame KR-KR} Rd8 {[%emt 0:00:09]} 28. Rd1 {[%emt 0:01:40]} Kf7 {[%emt 0:00:28]} 29. Kf1 {[%emt 0:02:05]} e5 {[%emt 0:00:56]} 30. Ke2 {[%emt 0:00:03]} Ke6 {[%emt 0:00:06]} 31. Ke3 {[%emt 0:00:03]} Rxd6 {[%emt 0:00:41]} 32. Rxd6+ {[%emt 0:00:28]} Kxd6 {[%emt 0:00:01]} 33. Kxe4 {[%emt 0:00:06] KP-KP} Ke6 {[%emt 0:00:39]} 34. g4 {[%emt 0:08:38][%cal Bg3g4,Bg4g5][%mdl 32]} g6 {[%emt 0:00:22]} 35. f4 {[%emt 0:04:02]} exf4 {[%emt 0:00:30]} 36. Kxf4 {[%emt 0:00:03]} Kf6 $2 {[%emt 0:03:43][%mdl 8192] [#]} (36... h6 $11) 37. g5+ $1 $18 {[%emt 0:00:29] White is clearly winning.} Ke6 {[%emt 0:02:32] [#]} 38. Ke4 $1 {[%emt 0:00:02]} b4 {[%emt 0:31:56]} 39. axb4 {[%emt 0:00:19]} Kd6 {[%emt 0:00:09]} 40. b5 {[%emt 0:01:42]} axb5 {[%emt 0:01:33]} 41. b4 {[%emt 0:03:27] Weighted Error Value: White=0.03 (flawless) /Black=0.02 (flawless)} 1-0

[Event "13th Dolomiti-Forni di Sopra-A 2022"]
[Site "Forni di Sopra"]
[Date "2022.06.13"]
[Round "2.6"]
[White "Podetti, Davide"]
[Black "Karttunen, Mika"]
[Result "1/2-1/2"]
[ECO "B51"]
[WhiteElo "2238"]
[BlackElo "2488"]
[Annotator "TA"]
[PlyCount "120"]
[EventDate "2022.06.13"]
[EventType "swiss"]
[EventCountry "ITA"]
[SourceTitle "playchess.com"]
[Source "ChessBase"]
[SourceQuality "1"]
[TimeControl "40/5400+30:1800+30"]

{[%evp 17,120,19,31,34,26,14,4,7,34,0,28,25,34,16,52,44,51,47,74,20,33,20,28,17,27,27,27,16,25,21,30,-22,-6,-72,-67,-72,-55,-73,-60,-70,-34,-37,-20,-118,-121,-128,-114,-118,-121,-107,-86,-86,-80,-81,-84,-83,-75,-87,-20,-13,-14,-9,-10,-8,0,0,0,0,-7,-159,-141,-140,-137,-100,-103,-381,-374,-352,-332,-512,-495,-663,-643,-557,-8,-8,0,-8,-8,-8,0,0,0,0,0,-8,-8,-8,-8,-8,-8,-8,-8,-8,-8]} 1. e4 {[%emt 0:00:04]} c5 {[%emt 0:00:07]} 2. Nf3 {[%emt 0:00:08]} d6 {[%emt 0:00:08]} 3. Bb5+ {[%emt 0:00:14]} Nc6 {[%emt 0:00:08]} 4. O-O {[%emt 0:05:27]} Bd7 {[%emt 0:00:42]} 5. Re1 {[%emt 0:00:38]} Nf6 {[%emt 0:00:41]} 6. c3 {[%emt 0:02:20]} a6 {[%emt 0:00:28]} 7. Bf1 {[%emt 0:00:13]} Bg4 {[%emt 0:00:25]} 8. d4 {[%emt 0:02:25]} cxd4 {[%emt 0:00:42]} 9. cxd4 {[%emt 0:00:05]} d5 {[%emt 0:00:08]} 10. e5 {[%emt 0:08:15] B51: Sicilian: Moscow Variation (3 Bb5+) without 3...Bd7.} Ng8 {[%emt 0:00:12]} 11. Be3 {[%emt 0:03:31]} e6 {[%emt 0:00:43]} 12. Nbd2 {[%emt 0:06:43] [#]} Qb6 $146 {[%emt 0:05:34]} ({Predecessor:} 12... Bb4 13. Re2 Nge7 14. h3 Bh5 15. a3 Bxd2 16. Rxd2 Nf5 17. Be2 Nxe3 18. fxe3 f6 {½-½ (39) Hernandez Sanchez,J (2401)-Cardoso Cardoso,J (2350) El Bagre 2019}) 13. Qa4 {[%emt 0:05:52]} Qb4 {[%emt 0:19:20]} 14. Qxb4 {[%emt 0:03:15]} Bxb4 {[%emt 0:00:13]} 15. Rec1 {[%emt 0:01:13]} f6 {[%emt 0:08:06]} 16. a3 {[%emt 0:08:14]} Ba5 {[%emt 0:04:05]} 17. b4 {[%emt 0:04:11]} Bb6 {[%emt 0:00:16] [#]} 18. b5 {[%emt 0:00:30]} (18. Bxa6 $1 $16 Rxa6 19. b5) 18... axb5 $11 {[%emt 0:00:30]} 19. Bxb5 {[%emt 0:00:57]} Nge7 {[%emt 0:01:10]} 20. Rab1 {[%emt 0:04:43] aiming for Bxc6+.} Bd8 {[%emt 0:04:35]} 21. a4 {[%emt 0:04:04]} O-O {[%emt 0:02:31]} 22. h3 {[%emt 0:05:28]} Bh5 {[%emt 0:01:55]} 23. g4 {[%emt 0:05:31]} Be8 {[%emt 0:03:07]} 24. Re1 {[%emt 0:01:34]} ({Better is} 24. exf6 Rxf6 25. Bd3) 24... f5 {[%emt 0:04:11]} 25. Bg5 {[%emt 0:02:48]} (25. Nb3 $11) 25... h6 $17 {[%emt 0:13:19]} 26. Bxe7 {[%emt 0:00:31]} Bxe7 {[%emt 0:00:05]} 27. gxf5 {[%emt 0:01:17]} Rxf5 {[%emt 0:00:05]} 28. Bd3 {[%emt 0:00:23]} Rf4 {[%emt 0:00:11]} 29. Rxb7 {[%emt 0:00:59]} Bd8 {[%emt 0:06:58]} (29... Rxa4 $2 30. Bb5 Rb4 31. Bxc6 Rxb7 32. Bxb7 $18) 30. Bb5 {[%emt 0:11:13]} (30. Re3 $11 {remains equal.}) 30... Na5 {[%emt 0:02:20]} ({Resist} 30... Nxd4 31. Nxd4 Rxd4 32. Bxe8 $16) 31. Bxe8 {[%emt 0:00:05]} Nxb7 {[%emt 0:00:04]} 32. Rb1 {[%emt 0:00:19]} Na5 {[%emt 0:00:47]} 33. Kg2 {[%emt 0:00:28]} Bc7 {[%emt 0:05:12]} 34. Bd7 {[%emt 0:01:26]} Kf7 {[%emt 0:00:07]} 35. Kg3 {[%emt 0:01:40]} g5 {[%emt 0:00:06]} 36. h4 {[%emt 0:00:49]} Ke7 {[%emt 0:01:38]} 37. Bb5 {[%emt 0:00:12]} Raf8 {[%emt 0:03:39]} ({Black should play} 37... Rh8 $17 38. hxg5 hxg5) 38. hxg5 $11 {[%emt 0:00:21]} h5 $36 {[%emt 0:01:39][%cal Oa5c4][%mdl 2048] Black fights for an advantage.} 39. Be2 {[%emt 0:04:23] Inhibits Nc4.} Rg4+ {[%emt 0:03:04]} 40. Kh3 {[%emt 0:00:16]} Rb8 {[%emt 0:02:09]} 41. Rxb8 {[%emt 0:17:40]} Bxb8 {[%emt 0:00:07]} 42. Nf1 {[%emt 0:00:27] Strongly threatening Ng3.} Nc6 {[%emt 0:05:00]} 43. Ne3 $2 {[%emt 0:00:14]} (43. Ng3 $1 $11) 43... Nxd4 $17 {[%emt 0:01:36]} 44. Nxg4 {[%emt 0:00:11]} hxg4+ {[%emt 0:00:05]} 45. Kxg4 {[%emt 0:00:05]} Nxe2 {[%emt 0:00:04]} 46. g6 $2 {[%emt 0:00:33][%mdl 8192]} (46. a5 $17) 46... Kf8 $19 {[%emt 0:08:52]} 47. Ng5 {[%emt 0:00:47]} Nd4 {[%emt 0:00:05]} ({Stronger than} 47... Bxe5 48. Nxe6+ Ke7 49. f4 $11 (49. Kf5 Bc3 $11)) 48. f4 {[%emt 0:00:15]} (48. Nf7 {was necessary.}) 48... Kg7 {[%emt 0:02:36] Threatens to win with ...Bc7.} 49. Kh5 {[%emt 0:01:34]} Bc7 {[%emt 0:00:32]} 50. Nf7 {[%emt 0:03:46]} Ne2 $2 {[%emt 0:08:55]} (50... Bb6 $19 51. Nd6 Nf5 52. Ne8+ Kh8) 51. Nd6 $1 $11 {[%emt 0:02:09] The position is equal.} Nxf4+ {[%emt 0:11:21]} 52. Kg5 $1 {[%emt 0:00:17] [#] Hoping for Ne8+.} Nxg6 {[%emt 0:01:02]} 53. Ne8+ {[%emt 0:00:06]} Kf7 {[%emt 0:00:03]} 54. Nxc7 {[%emt 0:00:08]} Nxe5 {[%emt 0:00:03][%mdl 4096] Endgame KN-KN} 55. a5 {[%emt 0:00:30]} Nc6 {[%emt 0:00:28]} 56. a6 {[%emt 0:00:14]} Na7 {[%emt 0:04:24]} 57. Nxd5 {[%emt 0:00:36]} exd5 {[%emt 0:00:04]} 58. Kf5 {[%emt 0:00:06]} Nc6 {[%emt 0:00:11]} 59. a7 $1 {[%emt 0:00:06]} Nxa7 {[%emt 0:00:04] ( -> ...Nb5)} 60. Ke5 {[%emt 0:00:02]} Nc8 {[%emt 0:03:38] White happily takes the draw.  Weighted Error Value: White=0.29 (precise) /Black=0.27 (precise)} 1/2-1/2